[Event "French Top 16-A 2024"]
[Site "Chartres"]
[Date "2024.06.03"]
[Round "5.3"]
[White "Van Foreest, Jorden"]
[Black "Bailet, Pierre"]
[Result "1-0"]
[ECO "E05"]
[WhiteElo "2665"]
[BlackElo "2492"]
[Annotator "TA"]
[PlyCount "81"]
[EventDate "2024.06.01"]
[EventType "team-tourn"]
[EventCountry "FRA"]
[SourceTitle "playchess.com"]
[Source "ChessBase"]
[SourceQuality "1"]
[TimeControl "40/5400+30:1800+30"]

{[%evp 18,81,22,15,17,0,14,0,4,0,11,12,17,21,28,24,23,13,16,0,0,0,0,0,0,4,28,41,40,43,47,47,69,52,140,95,109,109,111,112,137,117,152,149,144,139,157,149,135,150,155,150,145,131,279,267,341,345,424,367,5927,5927,29975,1622,29978,29979]} 1. Nf3 {[%emt 0:00:04]} d5 {[%emt 0:00:39]} 2. g3 {[%emt 0:00:18]} Nf6 {[%emt 0:01:30]} 3. Bg2 {[%emt 0:00:16]} e6 {[%emt 0:00:45]} 4. O-O {[%emt 0:00:31]} Be7 {[%emt 0:00:51]} 5. d4 {[%emt 0:00:35]} O-O {[%emt 0:01:56]} 6. c4 {[%emt 0:00:16]} dxc4 {[%emt 0:00:15]} 7. Qc2 {[%emt 0:00:08]} a6 {[%emt 0:00:32]} 8. a4 {[%emt 0:00:11]} Bd7 {[%emt 0:00:37]} 9. Qxc4 {[%emt 0:00:08]} Bc6 {[%emt 0:00:20]} 10. Bf4 {[%emt 0:00:12]} Bd6 {[%emt 0:04:28]} 11. Qc1 {[%emt 0:00:06]} a5 {[%emt 0:10:25]} 12. Nc3 {[%emt 0:00:29]} Na6 {[%emt 0:03:57] The position is equal.} 13. Bd2 {[%emt 0:00:18]} Nb4 {[%emt 0:03:09]} 14. Qb1 {[%emt 0:00:34]} Bxf3 {[%emt 0:02:31]} 15. Bxf3 {[%emt 0:00:06]} c6 {[%emt 0:00:10]} 16. Rd1 {[%emt 0:05:40][%cal Bf1d1,Bd1d4,Bd4h4][%mdl 32]} Qe7 {[%emt 0:05:57]} 17. Kg2 {[%emt 0:06:06]} e5 {[%emt 0:06:39]} 18. Bg5 {[%emt 0:09:55]} exd4 {[%emt 0:18:33]} 19. Rxd4 {[%emt 0:00:08]} Be5 {[%emt 0:02:11]} 20. Rh4 {[%emt 0:03:37] Threatens to win with Bxf6.} h6 {[%emt 0:00:57]} 21. Ne4 {[%emt 0:00:05]} Nbd5 {[%emt 0:01:31]} (21... hxg5 22. Nxf6+ gxf6 23. Qh7#) 22. Nxf6+ {[%emt 0:04:13]} Bxf6 {[%emt 0:02:01]} 23. Bxf6 {[%emt 0:00:36]} Nxf6 {[%emt 0:06:25]} 24. b4 {[%emt 0:00:07]} Rfd8 {[%emt 0:01:13]} 25. b5 {[%emt 0:00:39]} Qe5 {[%emt 0:02:29]} ({Better is} 25... g5 $14 26. Rxh6 Qe5 (26... g4 $2 27. Bxg4 Kg7 28. Rh3 $18)) 26. Ra3 {[%emt 0:01:28]} Nd5 {[%emt 0:07:22]} 27. bxc6 {[%emt 0:04:31]} bxc6 {[%emt 0:00:04]} 28. Qc1 {[%emt 0:00:08]} Nb4 {[%emt 0:01:55]} 29. Re3 {[%emt 0:00:22]} (29. Bxc6 $2 Rdc8 30. Rc3 (30. Rc4 $2 Rxc6 31. Rxc6 Qd5+ 32. f3 Qxc6 $19) 30... Rxc6 31. Rxc6 Qd5+ 32. e4 Qxc6 $19) 29... Qf6 {[%emt 0:01:58]} 30. Qc5 {[%emt 0:03:38]} Nd5 {[%emt 0:08:01] Inhibits Rf4.} 31. Rd3 {[%emt 0:00:10]} Nb4 {[%emt 0:00:32]} 32. Rdd4 {[%emt 0:05:01]} Rxd4 {[%emt 0:01:05]} 33. Rxd4 {[%emt 0:00:03]} Qg5 {[%emt 0:02:02]} 34. Qd6 {[%emt 0:00:56] White is more active.} Re8 {[%emt 0:01:04]} 35. Rg4 {[%emt 0:03:46]} (35. Bxc6 Nxc6 36. Qxc6 Rxe2 $11) 35... Qe5 {[%emt 0:00:11] This move loses the game for Black.} (35... Qf5 $16 36. h4 (36. Qxh6 $2 {loses.} Qxg4 37. Qd6 Qf5 $19) 36... Qe6) 36. Qxh6 $18 {[%emt 0:00:52]} f5 {[%emt 0:02:10]} 37. Rg5 {[%emt 0:01:02]} Nc2 {[%emt 0:00:36]} 38. Bxc6 {[%emt 0:01:22]} Ne1+ $2 {[%emt 0:01:48]} (38... Rd8 39. Qg6 Rd6 40. Qe8+ (40. Qxf5 Qxf5 41. Rxf5 Rxc6 $16) 40... Qxe8 41. Bxe8 Rf6) 39. Kh3 {[%emt 0:00:20]} Re7 {[%emt 0:00:35] [#]} 40. e4 $1 {[%emt 0:01:03]} Nf3 {[%emt 0:00:32]} (40... fxe4 41. Rxe5) 41. Bd5+ {[%emt 0:30:49] Weighted Error Value: White=0.09 (flawless) /Black=0.58.  Mistake:       	---       	Black=3      Inaccurate:     	White=1     	Black=1      OK:         	White=13    	Black=9      Best:        	White=2     	---} 1-0

[Event "French Top 16-A 2024"]
[Site "Chartres"]
[Date "2024.06.03"]
[Round "5.3"]
[White "Santos Latasa, Jaime"]
[Black "Moussard, Jules"]
[Result "1/2-1/2"]
[ECO "D36"]
[WhiteElo "2626"]
[BlackElo "2611"]
[Annotator "TA"]
[PlyCount "33"]
[EventDate "2024.06.01"]
[EventType "team-tourn"]
[EventCountry "FRA"]
[SourceTitle "playchess.com"]
[Source "ChessBase"]
[SourceQuality "1"]
[TimeControl "40/5400+30:1800+30"]

{[%evp 21,33,25,25,18,29,26,20,27,19,21,32,30,37,35]} 1. d4 {[%emt 0:00:03]} Nf6 {[%emt 0:03:42]} 2. c4 {[%emt 0:00:12]} e6 {[%emt 0:00:10]} 3. Nc3 {[%emt 0:00:16]} d5 {[%emt 0:00:11]} 4. cxd5 {[%emt 0:00:14]} exd5 {[%emt 0:00:04]} 5. Bg5 {[%emt 0:00:19]} c6 {[%emt 0:00:22]} 6. e3 {[%emt 0:00:34]} h6 {[%emt 0:00:11]} 7. Bh4 {[%emt 0:00:19]} Be7 {[%emt 0:00:06]} 8. Bd3 {[%emt 0:00:10]} O-O {[%emt 0:00:13]} 9. Nge2 {[%emt 0:00:26]} Re8 {[%emt 0:00:15]} 10. O-O {[%emt 0:01:00]} Nbd7 {[%emt 0:00:30]} 11. Qc2 {[%emt 0:00:34]} Nh5 {[%emt 0:01:24]} 12. Bxe7 {[%emt 0:00:17]} Qxe7 {[%emt 0:00:07]} 13. Rab1 {[%emt 0:00:24]} a5 {[%emt 0:02:51]} 14. Rbe1 {[%emt 0:02:29]} Nb6 {[%emt 0:09:02]} 15. Nd1 {[%emt 0:05:01]} Be6 {[%emt 0:07:45]} 16. f3 {[%emt 0:03:34]} Rac8 {[%emt 0:06:27]} 17. Qc3 {[%emt 0:13:44] Black got outplayed after the opening.   Weighted Error Value: White=0.00 (flawless) /Black=0.04 (flawless) .  OK:         	White=3     	Black=1} 1/2-1/2

[Event "French Top 16-A 2024"]
[Site "Chartres"]
[Date "2024.06.03"]
[Round "5.4"]
[White "Movsesian, Sergei"]
[Black "Kunin, Vitaly"]
[Result "1-0"]
[ECO "C10"]
[WhiteElo "2618"]
[BlackElo "2525"]
[Annotator "TA"]
[PlyCount "81"]
[EventDate "2024.06.01"]
[EventType "team-tourn"]
[EventCountry "FRA"]
[SourceTitle "playchess.com"]
[Source "ChessBase"]
[SourceQuality "1"]
[TimeControl "40/5400+30:1800+30"]

{[%evp 17,81,39,47,34,54,27,50,38,70,54,54,41,50,48,56,36,63,64,114,102,100,75,133,139,131,116,129,133,234,213,243,247,244,222,223,193,199,239,284,280,298,284,292,277,311,227,346,333,468,482,923,916,1797,1666,29984,29984,29984,29985,29988,29982,29979,29974,29965,29962,10178,11555]} 1. e4 {[%emt 0:00:04]} e6 {[%emt 0:00:17]} 2. d4 {[%emt 0:00:22]} d5 {[%emt 0:00:13]} 3. Nc3 {[%emt 0:00:21]} dxe4 {[%emt 0:00:57]} 4. Nxe4 {[%emt 0:00:05]} Bd7 {[%emt 0:00:39]} 5. Nf3 {[%emt 0:04:17]} Bc6 {[%emt 0:00:13]} 6. Bd3 {[%emt 0:00:13]} Nd7 {[%emt 0:00:10]} 7. O-O {[%emt 0:05:15]} Ngf6 {[%emt 0:00:37]} 8. Ned2 {[%emt 0:00:08]} Be7 {[%emt 0:00:45]} 9. Re1 {[%emt 0:04:32]} O-O {[%emt 0:01:08]} 10. c3 {[%emt 0:08:04][%cal Bc2c3,Bc3c4][%mdl 32]} a5 {[%emt 0:03:20]} 11. Bc2 {[%emt 0:03:16]} b5 {[%emt 0:06:17][%cal Bb7b5,Bb5b4][%mdl 32]} 12. Qe2 {[%emt 0:04:53] White is slightly better.} Rb8 {[%emt 0:15:48]} 13. a4 {[%emt 0:08:40]} b4 {[%emt 0:02:22]} 14. c4 {[%emt 0:08:28][%cal Od4d5] Threatens to win with d5!} Re8 {[%emt 0:19:21]} 15. Nb3 {[%emt 0:17:10]} Ra8 {[%emt 0:02:44]} 16. Bf4 {[%emt 0:03:14]} Bxf3 {[%emt 0:06:34]} 17. Qxf3 {[%emt 0:00:05]} Bd6 {[%emt 0:00:14] Black is now going downhill.} (17... Qc8 $14) 18. Bg5 {[%emt 0:04:33] White is much more active. This pair of bishops is nice.} h6 {[%emt 0:02:30]} 19. Bh4 {[%emt 0:00:20]} g5 {[%emt 0:05:26]} (19... Ra7 $142) 20. Bg3 $16 {[%emt 0:01:50]} Bxg3 {[%emt 0:00:12]} 21. fxg3 {[%emt 0:01:12]} (21. hxg3 Kg7 $16) 21... Kg7 {[%emt 0:01:17]} 22. Re2 {[%emt 0:02:16]} Ng8 {[%emt 0:11:49]} (22... e5 $16) 23. Be4 $18 {[%emt 0:02:10]} Ra7 {[%emt 0:00:11] Black is weak on the light squares} 24. Rf1 {[%emt 0:01:08]} Re7 {[%emt 0:03:39]} 25. Bc2 {[%emt 0:03:59]} Ra6 {[%emt 0:04:49][%cal Ba7a6,Ba6b6,Bb6g6][%mdl 32]} 26. Ref2 {[%emt 0:01:29][%cal Rf3f7] Strongly threatening Qxf7+!} Qe8 {[%emt 0:04:07]} 27. Qd3 {[%emt 0:02:53]} Nf8 {[%emt 0:02:04]} 28. h4 {[%emt 0:02:58]} gxh4 {[%emt 0:03:07]} 29. gxh4 {[%emt 0:00:07]} Kh8 {[%emt 0:00:25]} 30. Nc5 {[%emt 0:01:39]} Rb6 {[%emt 0:00:29]} 31. Qg3 {[%emt 0:01:41] Hoping for Qe5+.} e5 {[%emt 0:01:47]} (31... f6 $142 32. Re2 (32. Rxf6 Nxf6 33. Qe5 Rf7 $18) 32... Rg7) 32. dxe5 {[%emt 0:00:38]} Qc6 {[%emt 0:01:16]} (32... Rc6 {was called for.}) 33. Ne4 {[%emt 0:00:43]} Qg6 {[%emt 0:00:11] [#]} (33... Ng6 $142 34. c5 (34. Rxf7 Qxc4 35. Rxe7 N8xe7 $18) 34... b3) 34. Ng5 $1 {[%emt 0:00:27][%mdl 512]} hxg5 {[%emt 0:01:59]} (34... Qxc2 35. Nxf7+) 35. Bxg6 {[%emt 0:00:05]} Rxg6 {[%emt 0:00:08]} 36. Rxf7 {[%emt 0:00:39]} Rxf7 {[%emt 0:00:07]} 37. Rxf7 {[%emt 0:00:04]} gxh4 {[%emt 0:00:24]} 38. Qxh4+ {[%emt 0:00:20]} Rh6 {[%emt 0:00:07] [#]} 39. Qxh6+ $3 {[%emt 0:01:05]} Nxh6 {[%emt 0:00:07]} 40. Rxf8+ {[%emt 0:00:03]} Kg7 {[%emt 0:00:10]} 41. Ra8 {[%emt 0:30:08] Weighted Error Value: White=0.10 (very precise) /Black=0.51.  Mistake:       	---       	Black=6      Inaccurate:     	White=1     	Black=3      OK:         	White=12    	Black=5      Best:        	White=1     	---        Brilliant:      	White=1     	---} 1-0

[Event "French Top 16-A 2024"]
[Site "Chartres"]
[Date "2024.06.03"]
[Round "5.4"]
[White "Ganguly, Surya Shekhar"]
[Black "Hamdouchi, Hicham"]
[Result "1-0"]
[ECO "B33"]
[WhiteElo "2576"]
[BlackElo "2528"]
[Annotator "RC"]
[PlyCount "73"]
[EventDate "2024.06.01"]
[EventType "team-tourn"]
[EventCountry "FRA"]
[SourceTitle "playchess.com"]
[Source "ChessBase"]
[SourceQuality "1"]
[TimeControl "40/5400+30:1800+30"]

1. e4 {[%emt 0:00:27]} c5 {[%emt 0:00:08]} 2. Nf3 {[%emt 0:00:09]} Nc6 {[%emt 0:00:12]} 3. d4 {[%emt 0:00:15]} cxd4 {[%emt 0:00:08]} 4. Nxd4 {[%emt 0:00:03]} Nf6 {[%emt 0:00:51]} 5. Nc3 {[%emt 0:00:09]} e5 {[%emt 0:00:03]} 6. Ndb5 {[%emt 0:01:02]} d6 {[%emt 0:00:11]} 7. Bg5 {[%emt 0:00:25]} a6 {[%emt 0:00:15]} 8. Na3 {[%emt 0:00:16]} b5 {[%emt 0:00:06]} 9. Nd5 {[%emt 0:00:29]} Be7 {[%emt 0:01:05]} 10. Bxf6 {[%emt 0:00:07]} Bxf6 {[%emt 0:00:03]} 11. c3 {[%emt 0:00:09]} O-O {[%emt 0:02:02]} 12. Nc2 {[%emt 0:00:09]} Bg5 {[%emt 0:01:08]} 13. a4 {[%emt 0:00:37]} bxa4 {[%emt 0:00:52]} 14. Rxa4 {[%emt 0:00:06]} a5 {[%emt 0:01:23]} 15. Bc4 {[%emt 0:00:09]} Rb8 {[%emt 0:02:10]} 16. b3 {[%emt 0:00:07]} Kh8 {[%emt 0:06:18]} 17. Nce3 {[%emt 0:00:22]} Be6 {[%emt 0:04:18]} 18. O-O {[%emt 0:00:38]} g6 {[%emt 0:06:16]} 19. Kh1 {[%emt 0:02:50]} Bh6 {[%emt 0:04:59]} 20. Ra2 {[%emt 0:10:40]} f5 {[%emt 0:10:02]} 21. exf5 {[%emt 0:01:34]} gxf5 {[%emt 0:00:17]} 22. f4 {[%emt 0:00:19]} Bg7 {[%emt 0:04:45]} 23. Qh5 {[%emt 0:09:32]} Rb7 {[%emt 0:22:11]} 24. Rd2 {[%emt 0:06:32]} e4 {[%emt 0:04:54]} 25. Rfd1 {[%emt 0:02:05]} Qe8 {[%emt 0:09:03]} 26. Qe2 {[%emt 0:01:33]} Qb8 {[%emt 0:01:40]} 27. h3 {[%emt 0:06:14]} Qd8 {[%emt 0:02:16]} 28. Nb6 {[%emt 0:05:35]} Bxc4 {[%emt 0:10:10]} 29. Nbxc4 {[%emt 0:00:26]} Bxc3 {[%emt 0:00:30]} 30. Rxd6 {[%emt 0:02:05]} Qc8 {[%emt 0:00:24]} 31. R6d5 {[%emt 0:02:59]} Bb4 {[%emt 0:00:59]} 32. Qb2+ {[%emt 0:16:20]} Rg7 {[%emt 0:00:34]} 33. Nd6 {[%emt 0:03:32]} Bxd6 {[%emt 0:00:33]} 34. Rxd6 {[%emt 0:00:05]} Ne7 {[%emt 0:00:30]} 35. Rd7 {[%emt 0:02:14]} Qc5 {[%emt 0:03:08]} 36. Nd5 {[%emt 0:04:11]} Kg8 {[%emt 0:00:11]} 37. Qe5 {[%emt 0:03:58]} 1-0

[Event "French Top 16-A 2024"]
[Site "Chartres"]
[Date "2024.06.03"]
[Round "5.5"]
[White "Van Wely, Loek"]
[Black "Vitoux, Colomban"]
[Result "1-0"]
[ECO "D91"]
[WhiteElo "2608"]
[BlackElo "2374"]
[Annotator "TA"]
[PlyCount "81"]
[EventDate "2024.06.01"]
[EventType "team-tourn"]
[EventCountry "FRA"]
[SourceTitle "playchess.com"]
[Source "ChessBase"]
[SourceQuality "1"]
[TimeControl "40/5400+30:1800+30"]

{[%evp 20,81,28,16,17,20,22,31,27,25,31,11,12,-2,-10,0,0,0,0,-3,-4,-2,-10,-16,0,0,6,12,18,14,17,34,35,32,26,13,137,55,153,108,415,414,554,752,902,886,881,846,845,801,813,754,29963,775,29974,29974,29977,29978,29978,1554,29982,29983,29983,29984]} 1. c4 {[%emt 0:01:49]} Nf6 {[%emt 0:00:37]} 2. Nc3 {[%emt 0:00:18]} g6 {[%emt 0:00:39]} 3. d4 {[%emt 0:01:51]} d5 {[%emt 0:00:37]} 4. Bg5 {[%emt 0:04:10]} Ne4 {[%emt 0:03:00]} 5. Bh4 {[%emt 0:00:10]} Nxc3 {[%emt 0:02:13]} 6. bxc3 {[%emt 0:00:06]} Bg7 {[%emt 0:01:44]} 7. e3 {[%emt 0:06:23]} c5 {[%emt 0:01:29]} 8. Nf3 {[%emt 0:04:54]} Nc6 {[%emt 0:02:11]} 9. cxd5 {[%emt 0:07:04]} Qxd5 {[%emt 0:00:34]} 10. Be2 {[%emt 0:01:00]} cxd4 {[%emt 0:10:44]} 11. cxd4 {[%emt 0:00:29]} e5 {[%emt 0:03:47]} 12. dxe5 {[%emt 0:03:18]} Qa5+ {[%emt 0:00:26]} 13. Qd2 {[%emt 0:00:06]} Qxd2+ {[%emt 0:03:16] White is slightly better.} 14. Kxd2 {[%emt 0:00:06]} O-O {[%emt 0:01:52]} 15. Rac1 {[%emt 0:02:49]} Be6 {[%emt 0:11:26]} 16. Rc5 {[%emt 0:21:38]} Rfc8 {[%emt 0:06:00][%cal Og7f8]} 17. Bd3 {[%emt 0:22:23]} Nb4 {[%emt 0:09:30]} 18. Rxc8+ {[%emt 0:02:05]} Rxc8 {[%emt 0:00:06]} 19. Be4 {[%emt 0:06:17]} Bxa2 {[%emt 0:02:40]} 20. Ra1 {[%emt 0:00:13]} Rc7 {[%emt 0:11:36]} 21. Bf6 {[%emt 0:04:05]} Bxf6 {[%emt 0:03:56]} 22. exf6 {[%emt 0:00:02]} a6 {[%emt 0:01:27]} 23. g4 {[%emt 0:00:49]} h6 {[%emt 0:01:36]} 24. h4 {[%emt 0:00:19]} Rc5 {[%emt 0:14:33]} 25. Nd4 {[%emt 0:02:17]} (25. Bxb7 Rc2+ 26. Ke1 Nd3+ 27. Kf1 Rxf2+ 28. Kg1 Rb2) 25... Bd5 {[%emt 0:02:04]} 26. Bxd5 {[%emt 0:00:57]} Rxd5 $14 {[%emt 0:00:31][%mdl 4096] Endgame. KRN-KRN} 27. Kc3 {[%emt 0:01:21]} Nc6 {[%emt 0:02:33]} (27... a5 $11 {keeps the balance.}) 28. Kc4 {[%emt 0:02:16]} ({White should play} 28. Nxc6 $16 {And now Ne7+ would win.} Rc5+ 29. Kb4 Rxc6 30. g5) 28... Rd7 {[%emt 0:00:19]} ({Black should try} 28... Rd6 $14) 29. f4 {[%emt 0:01:28] White is more active.} Nxd4 $4 {[%emt 0:00:23][%mdl 8192] [#] Black cannot hold the game after this.} (29... Na7 $16 {is a better chance.}) 30. exd4 $16 {[%emt 0:00:02][%cal Be3d4,Bd4d5][%mdl 32] KR-KR} g5 {[%emt 0:01:23]} 31. fxg5 {[%emt 0:00:23]} (31. hxg5 hxg5 32. fxg5 Kh7 $18) 31... hxg5 {[%emt 0:00:01]} 32. h5 {[%emt 0:00:24]} (32. hxg5 Kh7 33. d5 a5 $11) 32... Rd6 {[%emt 0:00:49]} 33. Rf1 {[%emt 0:00:29]} Rc6+ {[%emt 0:01:07]} 34. Kd3 {[%emt 0:01:07]} b5 {[%emt 0:00:47]} 35. d5 {[%emt 0:00:28]} Rc4 {[%emt 0:00:32]} 36. Re1 {[%emt 0:01:10]} (36. Rd1 $142 Kf8 37. h6 Rxg4 38. d6 Ke8 39. Rh1 Rg3+ 40. Ke4 Kd7 41. h7 Rg4+ 42. Kd5) 36... Rc5 {[%emt 0:00:53]} 37. Kd4 {[%emt 0:01:11]} Rc4+ {[%emt 0:00:11]} 38. Ke5 {[%emt 0:00:05]} Rc8 {[%emt 0:01:06]} 39. Rd1 {[%emt 0:01:08]} (39. Kd6 $142 b4 40. Ke7 Rc7+ 41. Kd8 Rc4 42. d6 Rxg4 43. d7 Rc4 44. Re8+ (44. Ke8 Rd4 45. d8=Q Rxd8+ 46. Kxd8 g4 47. Re8+ Kh7 48. Ke7 Kh6 49. Kxf7 Kg5) 44... Kh7 45. Ke7) 39... Re8+ {[%emt 0:00:45]} 40. Kd4 {[%emt 0:00:20]} b4 {[%emt 0:00:21]} 41. d6 {[%emt 0:32:37] Weighted Error Value: White=0.12 (very precise) /Black=0.96.  Loses game:     	---       	Black=1      Mistake:       	White=1     	Black=2      Inaccurate:     	---       	Black=1      OK:         	White=9     	Black=5      Best:        	White=2     	---} 1-0

[Event "French Top 16-A 2024"]
[Site "Chartres"]
[Date "2024.06.03"]
[Round "5.5"]
[White "Girel, Joseph"]
[Black "Pelletier, Yannick"]
[Result "1/2-1/2"]
[ECO "C11"]
[WhiteElo "2477"]
[BlackElo "2515"]
[Annotator "TA"]
[PlyCount "81"]
[EventDate "2024.06.01"]
[EventType "team-tourn"]
[EventCountry "FRA"]
[SourceTitle "playchess.com"]
[Source "ChessBase"]
[SourceQuality "1"]
[TimeControl "40/5400+30:1800+30"]

{[%evp 13,81,0,20,15,20,18,33,37,32,22,39,29,26,15,15,16,17,16,20,13,19,5,51,50,41,27,37,26,35,36,31,33,24,15,34,0,0,0,0,0,0,0,0,0,0,0,0,0,0,0,5,0,0,0,40,30,25,20,18,0,0,0,0,0,0,0,0,0,0,0]} 1. e4 {[%emt 0:00:11]} e6 {[%emt 0:01:13]} 2. d4 {[%emt 0:00:12]} d5 {[%emt 0:00:08]} 3. Nc3 {[%emt 0:00:47]} Nf6 {[%emt 0:00:28]} 4. e5 {[%emt 0:00:15]} Nfd7 {[%emt 0:00:07]} 5. f4 {[%emt 0:00:13]} c5 {[%emt 0:00:17]} 6. Nf3 {[%emt 0:00:10]} Nc6 {[%emt 0:02:07]} 7. Be3 {[%emt 0:00:10]} a6 {[%emt 0:00:03]} 8. Ne2 {[%emt 0:00:34]} Qb6 {[%emt 0:04:52]} 9. Qc1 {[%emt 0:00:24]} cxd4 {[%emt 0:00:14]} 10. Nexd4 {[%emt 0:01:36] White is slightly better.} Nxd4 {[%emt 0:00:22]} 11. Nxd4 {[%emt 0:02:11]} f6 {[%emt 0:01:17]} 12. exf6 {[%emt 0:09:46]} Nxf6 {[%emt 0:00:13]} 13. Be2 {[%emt 0:01:33] Against Ng4} Bc5 {[%emt 0:02:05]} 14. c3 {[%emt 0:00:59]} a5 {[%emt 0:00:05][%cal Ba6a5,Ba5a4][%mdl 32]} 15. O-O {[%emt 0:03:24]} O-O {[%emt 0:00:12]} 16. a3 {[%emt 0:10:35]} a4 $1 {[%emt 0:29:48]} 17. Nc2 {[%emt 0:01:08]} Re8 {[%emt 0:02:23]} (17... Ne4 $11 {was preferrable.}) 18. Bxc5 $14 {[%emt 0:01:17]} Qxc5+ {[%emt 0:00:06]} 19. Nd4 {[%emt 0:05:17]} e5 {[%emt 0:00:26]} 20. fxe5 {[%emt 0:00:06]} Rxe5 {[%emt 0:00:03]} 21. Bd3 {[%emt 0:08:41]} Bd7 {[%emt 0:01:11]} 22. Qf4 {[%emt 0:06:05]} Rae8 {[%emt 0:00:15]} 23. Qf2 {[%emt 0:03:29]} (23. Rf3 {is more complex.} Re1+ 24. Rxe1 Rxe1+ 25. Kf2) 23... R5e7 {[%emt 0:26:41]} 24. Nf5 {[%emt 0:25:46]} Qxf2+ {[%emt 0:00:20]} 25. Rxf2 {[%emt 0:00:07]} Re1+ {[%emt 0:00:26]} 26. Rxe1 {[%emt 0:00:15]} Rxe1+ {[%emt 0:00:04]} 27. Rf1 {[%emt 0:00:12]} Bxf5 {[%emt 0:01:57]} 28. Bxf5 $11 {[%emt 0:00:11][%mdl 4096] Endgame. KRB-KRN} Re2 {[%emt 0:00:07]} 29. Rf2 {[%emt 0:00:10]} Re1+ {[%emt 0:00:04]} 30. Rf1 {[%emt 0:00:04]} Re2 {[%emt 0:00:07]} 31. g4 {[%emt 0:07:10]} g5 {[%emt 0:17:23]} (31... Rxb2 $2 {too greedy.} 32. g5 $18) 32. Rf2 {[%emt 0:04:41]} Re1+ {[%emt 0:00:46]} 33. Kg2 {[%emt 0:00:32]} Kg7 {[%emt 0:00:17]} 34. Rd2 {[%emt 0:00:23]} Kf7 {[%emt 0:05:42]} 35. Kf2 {[%emt 0:00:38]} Re4 {[%emt 0:01:10] The position is equal.} 36. Rd4 {[%emt 0:05:00]} Rxd4 {[%emt 0:00:10]} 37. cxd4 {[%emt 0:00:02]} Ke7 {[%emt 0:00:16]} 38. Ke3 {[%emt 0:00:38]} Kd6 {[%emt 0:00:45]} 39. Kd3 {[%emt 0:00:27]} Kc6 {[%emt 0:00:40]} 40. Kc3 {[%emt 0:00:12]} Kb5 {[%emt 0:01:49]} 41. Bd3+ {[%emt 0:33:06] Weighted Error Value: White=0.05 (flawless) /Black=0.06 (flawless) .  Mistake:       	---       	Black=1      Inaccurate:     	White=1     	Black=1      OK:         	White=9     	Black=18     Best:        	White=1     	Black=1      Strong:       	---       	Black=1} 1/2-1/2

[Event "French Top 16-A 2024"]
[Site "Chartres"]
[Date "2024.06.03"]
[Round "5.6"]
[White "Cornette, Matthieu"]
[Black "Degraeve, Remy"]
[Result "0-1"]
[ECO "D35"]
[WhiteElo "2568"]
[BlackElo "2433"]
[Annotator "TA"]
[PlyCount "48"]
[EventDate "2024.06.01"]
[EventType "team-tourn"]
[EventCountry "FRA"]
[SourceTitle "playchess.com"]
[Source "ChessBase"]
[SourceQuality "1"]
[TimeControl "40/5400+30:1800+30"]

{[%evp 12,48,31,31,39,46,48,68,58,25,57,54,45,46,42,6,20,0,45,36,40,29,45,17,35,0,0,-109,-128,-124,-112,-106,-101,-1547,-1539,-1410,-1387,-1374,-1357]} 1. d4 {[%emt 0:02:25]} Nf6 {[%emt 0:00:21]} 2. c4 {[%emt 0:00:15]} e6 {[%emt 0:00:03]} 3. Nc3 {[%emt 0:00:29]} d5 {[%emt 0:00:04]} 4. cxd5 {[%emt 0:00:49]} exd5 {[%emt 0:00:06]} 5. Bg5 {[%emt 0:00:39][%cal Bc1g5,Bg5h4,Bh4g3,Bg3h2][%mdl 32]} Bb4 {[%emt 0:00:10]} 6. e3 {[%emt 0:04:57]} h6 {[%emt 0:00:03]} 7. Bh4 {[%emt 0:01:16]} g5 {[%emt 0:00:05][%cal Bg7g5,Bg5g4][%mdl 32]} 8. Bg3 {[%emt 0:00:06]} Ne4 {[%emt 0:00:06]} 9. Nge2 {[%emt 0:00:28]} h5 {[%emt 0:00:13] White is slightly better.} 10. h3 {[%emt 0:00:04]} Nc6 {[%emt 0:00:06]} 11. Bh2 {[%emt 0:12:41]} g4 {[%emt 0:00:48]} 12. Bf4 {[%emt 0:04:06] Hoping for hxg4.} gxh3 {[%emt 0:00:07]} 13. a3 {[%emt 0:05:23]} Nxc3 {[%emt 0:16:38]} 14. Nxc3 {[%emt 0:02:08]} Bd6 {[%emt 0:02:16] White must now prevent ...Bxf4.} 15. Bxd6 {[%emt 0:04:18]} (15. Nxd5 Be6 16. Nc3 (16. Bxd6 $2 Bxd5 17. Bxc7 hxg2 $19) 16... Bxf4 $15) 15... Qxd6 {[%emt 0:00:13]} 16. gxh3 {[%emt 0:04:02]} Bf5 {[%emt 0:04:58]} 17. Qa4 {[%emt 0:05:51]} a6 {[%emt 0:24:24]} 18. Qb3 {[%emt 0:07:11]} O-O-O {[%emt 0:02:36]} 19. Na4 {[%emt 0:02:33] [#]} (19. Bg2 $11 {keeps the balance.}) 19... Nxd4 $1 $17 {[%emt 0:12:09][%mdl 512] Black is more active.} 20. exd4 {[%emt 0:00:28] And now 0-0-0 would win.} Rhe8+ {[%emt 0:02:00]} 21. Be2 {[%emt 0:03:39] Kf1 would now be deadly.} Qf4 {[%emt 0:00:45]} 22. Rg1 $2 {[%emt 0:09:16][%mdl 8192] [#]} (22. Kf1 $17 Rxe2 (22... Qxd4 23. Rd1 $11) 23. Kxe2 Qxd4 (23... Qe4+ 24. Qe3 $15) 24. Rhd1 Re8+ (24... Qe4+ 25. Kf1 $17) 25. Kf1) 22... Rxe2+ $1 $19 {[%emt 0:03:19][%mdl 512] Black is clearly winning.} 23. Kxe2 {[%emt 0:00:09] [#]} Re8+ $1 {[%emt 0:00:04]} 24. Kf1 {[%emt 0:05:34]} Qh2 {[%emt 0:00:30] Weighted Error Value: White=0.47/Black=0.07 (flawless) .  Loses game:     	White=1     	---        Mistake:       	White=1     	---        Inaccurate:     	White=4     	Black=2      OK:         	White=5     	Black=6      Best:        	White=2     	Black=1      Brilliant:      	---       	Black=2} (24... Qxd4 $2 {too greedy.} 25. Rg3 Bd7 26. Nc3 $18) 0-1